[Event "Betsys MČR v online bleskovém šachu 2021"]
[Site "Chess.com"]
[Date "2021.04.17"]
[Round "8"]
[White "Classemence"]
[Black "CzechMerlin"]
[Result "1-0"]
[WhiteElo "1910"]
[BlackElo "1660"]
[TimeControl "180+1"]
[EndTime "10:16:55 PDT"]
[Termination "Uživatel Classemence zvítězil po vzdání soupeře"]

1. e4 {[%clk 0:03:00.9]} 1... e5 {[%clk 0:02:59.7]} 2. Nf3 {[%clk 0:03:00.6]}
2... d6 {[%clk 0:03:00]} 3. d4 {[%clk 0:03:00.2]} 3... f5 {[%clk 0:03:00.6]} 4.
dxe5 {[%clk 0:02:59]} 4... fxe4 {[%clk 0:03:00.4]} 5. Ng5 {[%clk 0:02:56.9]}
5... d5 {[%clk 0:03:00.5]} 6. f4 {[%clk 0:02:49.2]} 6... Be7 {[%clk 0:02:57.9]}
7. Be2 {[%clk 0:02:39]} 7... c5 {[%clk 0:02:47.2]} 8. O-O {[%clk 0:02:32]} 8...
d4 {[%clk 0:02:47.1]} 9. Nxe4 {[%clk 0:02:31.3]} 9... Bf5 {[%clk 0:02:42.1]} 10.
Bf3 {[%clk 0:02:28.3]} 10... Nc6 {[%clk 0:02:41.5]} 11. Ng3 {[%clk 0:02:21.1]}
11... Bd7 {[%clk 0:02:38.2]} 12. Qe2 {[%clk 0:01:40]} 12... Nh6 {[%clk
0:02:36.6]} 13. f5 {[%clk 0:01:32]} 13... Bxf5 {[%clk 0:02:32.7]} 14. Bxh6
{[%clk 0:01:30.2]} 14... gxh6 {[%clk 0:02:28.1]} 15. Bxc6+ {[%clk 0:01:30.4]}
1-0

[Event "Betsys MČR v online bleskovém šachu 2021"]
[Site "Chess.com"]
[Date "2021.04.17"]
[Round "8"]
[White "bumurubac"]
[Black "horalek"]
[Result "1-0"]
[WhiteElo "1027"]
[BlackElo "1331"]
[TimeControl "180+1"]
[EndTime "10:16:58 PDT"]
[Termination "Uživatel bumurubac zvítězil matem"]

1. e4 {[%clk 0:03:00.9]} 1... e5 {[%clk 0:02:55.4]} 2. d4 {[%clk 0:03:00.5]}
2... exd4 {[%clk 0:02:54.6]} 3. c3 {[%clk 0:03:00.5]} 3... d3 {[%clk 0:02:51]}
4. Bxd3 {[%clk 0:02:58.8]} 4... Bc5 {[%clk 0:02:47.2]} 5. Bc4 {[%clk 0:02:57.4]}
5... d6 {[%clk 0:02:45.9]} 6. Be3 {[%clk 0:02:54.5]} 6... Bxe3 {[%clk
0:02:37.3]} 7. fxe3 {[%clk 0:02:54.1]} 7... Nf6 {[%clk 0:02:34.4]} 8. Nf3 {[%clk
0:02:52.9]} 8... Bg4 {[%clk 0:02:32.4]} 9. h3 {[%clk 0:02:51.6]} 9... Bh5 {[%clk
0:02:28.2]} 10. g4 {[%clk 0:02:50.9]} 10... Bg6 {[%clk 0:02:27.2]} 11. Ng5
{[%clk 0:02:50.5]} 11... O-O {[%clk 0:02:25.2]} 12. h4 {[%clk 0:02:50.2]} 12...
h6 {[%clk 0:02:20.6]} 13. h5 {[%clk 0:02:49.4]} 13... Bh7 {[%clk 0:02:16.8]} 14.
Nxh7 {[%clk 0:02:48]} 14... Kxh7 {[%clk 0:02:14.9]} 15. Qd3 {[%clk 0:02:46.5]}
15... Nc6 {[%clk 0:02:06.8]} 16. e5+ {[%clk 0:02:45.6]} 16... Ne4 {[%clk
0:01:58.5]} 17. Qxe4+ {[%clk 0:02:43.3]} 17... Kh8 {[%clk 0:01:56.7]} 18. Bd3
{[%clk 0:02:43]} 18... g6 {[%clk 0:01:50.3]} 19. hxg6 {[%clk 0:02:42.3]} 19...
fxg6 {[%clk 0:01:48.7]} 20. Qxg6 {[%clk 0:02:41.5]} 20... Rf7 {[%clk 0:01:30.9]}
21. Rxh6+ {[%clk 0:02:39.6]} 21... Rh7 {[%clk 0:01:27.7]} 22. Qxh7# {[%clk
0:02:39.3]} 1-0

[Event "Betsys MČR v online bleskovém šachu 2021"]
[Site "Chess.com"]
[Date "2021.04.17"]
[Round "8"]
[White "Dejfos"]
[Black "RomanHlavicka"]
[Result "0-1"]
[WhiteElo "1754"]
[BlackElo "1540"]
[TimeControl "180+1"]
[EndTime "10:17:00 PDT"]
[Termination "Uživatel RomanHlavicka zvítězil po vzdání soupeře"]

1. e4 {[%clk 0:02:58]} 1... d5 {[%clk 0:02:59.9]} 2. exd5 {[%clk 0:02:57.3]}
2... Nf6 {[%clk 0:03:00]} 3. Nc3 {[%clk 0:02:56.8]} 3... c6 {[%clk 0:03:00.4]}
4. d4 {[%clk 0:02:57.3]} 4... cxd5 {[%clk 0:02:58.8]} 5. Bb5+ {[%clk 0:02:55.3]}
5... Nc6 {[%clk 0:02:58.4]} 6. Nf3 {[%clk 0:02:54.9]} 6... Bd7 {[%clk 0:02:57]}
7. O-O {[%clk 0:02:54.6]} 7... e6 {[%clk 0:02:55.4]} 8. Bg5 {[%clk 0:02:51.7]}
8... Be7 {[%clk 0:02:55]} 9. Bd3 {[%clk 0:02:40.2]} 9... O-O {[%clk 0:02:54.4]}
10. Qd2 {[%clk 0:02:29.9]} 10... a6 {[%clk 0:02:54.4]} 11. Bh4 {[%clk
0:02:10.5]} 11... Rc8 {[%clk 0:02:52.4]} 12. h3 {[%clk 0:02:08.2]} 12... Nb4
{[%clk 0:02:42.3]} 13. Bg3 {[%clk 0:02:02.4]} 13... Nxd3 {[%clk 0:02:37.9]} 14.
Qxd3 {[%clk 0:02:03]} 14... Qb6 {[%clk 0:02:25.3]} 15. Na4 {[%clk 0:01:57.8]}
15... Bxa4 {[%clk 0:02:21.2]} 16. b3 {[%clk 0:01:55.3]} 16... Bb5 {[%clk
0:02:20.9]} 17. c4 {[%clk 0:01:50.7]} 17... dxc4 {[%clk 0:02:17.9]} 18. Qe4
{[%clk 0:01:42.8]} 18... Nxe4 {[%clk 0:02:16.4]} 0-1

[Event "Betsys MČR v online bleskovém šachu 2021"]
[Site "Chess.com"]
[Date "2021.04.17"]
[Round "8"]
[White "Emicka1330"]
[Black "Michal5"]
[Result "1-0"]
[WhiteElo "1606"]
[BlackElo "1203"]
[TimeControl "180+1"]
[EndTime "10:17:00 PDT"]
[Termination "Uživatel Emicka1330 zvítězil po vzdání soupeře"]

1. e4 {[%clk 0:02:57.8]} 1... c5 {[%clk 0:02:59]} 2. Nc3 {[%clk 0:02:57.1]} 2...
d6 {[%clk 0:02:53.6]} 3. g3 {[%clk 0:02:56.2]} 3... Nf6 {[%clk 0:02:52.5]} 4.
Bg2 {[%clk 0:02:56.2]} 4... g6 {[%clk 0:02:50.4]} 5. d3 {[%clk 0:02:55.6]} 5...
Bg7 {[%clk 0:02:50.2]} 6. h3 {[%clk 0:02:53.5]} 6... O-O {[%clk 0:02:50]} 7. Be3
{[%clk 0:02:53.8]} 7... Nc6 {[%clk 0:02:49.9]} 8. Qd2 {[%clk 0:02:53.8]} 8...
Bd7 {[%clk 0:02:49.1]} 9. Bh6 {[%clk 0:02:53.1]} 9... Rc8 {[%clk 0:02:45.7]} 10.
h4 {[%clk 0:02:50.2]} 10... Nd4 {[%clk 0:02:38]} 11. O-O-O {[%clk 0:02:47.2]}
11... b5 {[%clk 0:02:31]} 12. h5 {[%clk 0:02:45.9]} 12... Nxh5 {[%clk
0:02:26.6]} 13. Rxh5 {[%clk 0:02:36.9]} 13... gxh5 {[%clk 0:02:06.7]} 14. Nge2
{[%clk 0:02:22.2]} 14... Nxe2+ {[%clk 0:02:00.3]} 15. Nxe2 {[%clk 0:02:19.8]}
15... Bg4 {[%clk 0:01:51.9]} 16. Qg5 {[%clk 0:02:15.4]} 1-0

[Event "Betsys MČR v online bleskovém šachu 2021"]
[Site "Chess.com"]
[Date "2021.04.17"]
[Round "8"]
[White "sachistamartin"]
[Black "Asmodai5"]
[Result "1-0"]
[WhiteElo "1433"]
[BlackElo "1062"]
[TimeControl "180+1"]
[EndTime "10:17:13 PDT"]
[Termination "Uživatel sachistamartin zvítězil matem"]

1. c4 {[%clk 0:02:26.4]} 1... e5 {[%clk 0:02:55.5]} 2. Nc3 {[%clk 0:02:25.9]}
2... Nf6 {[%clk 0:02:54.8]} 3. e3 {[%clk 0:02:25.6]} 3... d5 {[%clk 0:02:53.6]}
4. cxd5 {[%clk 0:02:25.1]} 4... Nxd5 {[%clk 0:02:53.1]} 5. Bc4 {[%clk
0:02:25.1]} 5... Be6 {[%clk 0:02:48.7]} 6. Nxd5 {[%clk 0:02:21.6]} 6... Bxd5
{[%clk 0:02:48.3]} 7. Bxd5 {[%clk 0:02:21.1]} 7... Qxd5 {[%clk 0:02:48.2]} 8.
Nf3 {[%clk 0:02:20.7]} 8... Nc6 {[%clk 0:02:46.7]} 9. b3 {[%clk 0:02:19]} 9...
O-O-O {[%clk 0:02:45.5]} 10. Bb2 {[%clk 0:02:18.7]} 10... Bd6 {[%clk 0:02:44]}
11. O-O {[%clk 0:02:17.1]} 11... Rhg8 {[%clk 0:02:39.9]} 12. d4 {[%clk
0:02:15.2]} 12... e4 {[%clk 0:02:38.8]} 13. Nd2 {[%clk 0:02:13.4]} 13... g5
{[%clk 0:02:31.8]} 14. a4 {[%clk 0:02:09.7]} 14... f5 {[%clk 0:02:29]} 15. b4
{[%clk 0:02:09]} 15... Nxb4 {[%clk 0:02:26]} 16. Qe2 {[%clk 0:02:04.1]} 16... f4
{[%clk 0:02:10.2]} 17. Rfc1 {[%clk 0:02:01.7]} 17... fxe3 {[%clk 0:02:01.4]} 18.
Qxe3 {[%clk 0:01:59.2]} 18... Bf4 {[%clk 0:01:58.4]} 19. Qc3 {[%clk 0:01:55.2]}
19... Bxd2 {[%clk 0:01:55.8]} 20. Qxc7# {[%clk 0:01:54.5]} 1-0

[Event "Betsys MČR v online bleskovém šachu 2021"]
[Site "Chess.com"]
[Date "2021.04.17"]
[Round "8"]
[White "trosecnik"]
[Black "DrStillestein"]
[Result "0-1"]
[WhiteElo "1837"]
[BlackElo "2105"]
[TimeControl "180+1"]
[EndTime "10:17:22 PDT"]
[Termination "Uživatel DrStillestein zvítězil po vzdání soupeře"]

1. e4 {[%clk 0:02:58.7]} 1... c5 {[%clk 0:03:00.5]} 2. c3 {[%clk 0:02:58.6]}
2... e5 {[%clk 0:02:59.9]} 3. Nf3 {[%clk 0:02:56.7]} 3... d6 {[%clk 0:02:59.8]}
4. d4 {[%clk 0:02:52.8]} 4... cxd4 {[%clk 0:02:58.5]} 5. cxd4 {[%clk 0:02:50.6]}
5... Bg4 {[%clk 0:02:36.9]} 6. Bb5+ {[%clk 0:02:24.9]} 6... Nd7 {[%clk
0:02:35.8]} 7. Nc3 {[%clk 0:02:19.5]} 7... a6 {[%clk 0:02:34]} 8. Be2 {[%clk
0:02:19.5]} 8... Ngf6 {[%clk 0:02:26.9]} 9. h3 {[%clk 0:02:17.3]} 9... Bh5
{[%clk 0:02:26.4]} 10. Bg5 {[%clk 0:02:09.3]} 10... Be7 {[%clk 0:02:23.6]} 11.
Qb3 {[%clk 0:02:06]} 11... Bxf3 {[%clk 0:02:14.8]} 12. Bxf3 {[%clk 0:02:02.6]}
12... exd4 {[%clk 0:02:15.2]} 13. Nd5 {[%clk 0:01:52.9]} 13... Nxd5 {[%clk
0:02:14.8]} 14. Qxd5 {[%clk 0:01:37.5]} 14... Bxg5 {[%clk 0:02:14.3]} 15. Bh5
{[%clk 0:01:38.2]} 15... g6 {[%clk 0:02:13.2]} 16. Bg4 {[%clk 0:01:37.9]} 16...
Ne5 {[%clk 0:02:05]} 0-1

[Event "Betsys MČR v online bleskovém šachu 2021"]
[Site "Chess.com"]
[Date "2021.04.17"]
[Round "8"]
[White "JanBaraCZE"]
[Black "matyson523"]
[Result "0-1"]
[WhiteElo "1592"]
[BlackElo "1812"]
[TimeControl "180+1"]
[EndTime "10:17:23 PDT"]
[Termination "Uživatel matyson523 zvítězil po vzdání soupeře"]

1. d4 {[%clk 0:03:00.9]} 1... d5 {[%clk 0:02:59.5]} 2. c4 {[%clk 0:03:01.8]}
2... e6 {[%clk 0:02:59.3]} 3. cxd5 {[%clk 0:03:02.7]} 3... exd5 {[%clk
0:02:59.3]} 4. Nc3 {[%clk 0:03:03.5]} 4... c5 {[%clk 0:02:59.4]} 5. Nf3 {[%clk
0:03:04]} 5... Nc6 {[%clk 0:02:58.1]} 6. dxc5 {[%clk 0:03:03.6]} 6... d4 {[%clk
0:02:58]} 7. Nb5 {[%clk 0:03:02.7]} 7... Bxc5 {[%clk 0:02:56.7]} 8. e3 {[%clk
0:02:44.9]} 8... Bg4 {[%clk 0:02:48.8]} 9. Be2 {[%clk 0:02:42.5]} 9... Bxf3
{[%clk 0:02:46.6]} 10. Bxf3 {[%clk 0:02:42]} 10... Qa5+ {[%clk 0:02:46]} 11. Qd2
{[%clk 0:02:28.3]} 11... Bb4 {[%clk 0:02:39.1]} 12. Bxc6+ {[%clk 0:02:23.2]}
12... bxc6 {[%clk 0:02:34.7]} 13. Nc3 {[%clk 0:02:22.6]} 13... dxc3 {[%clk
0:02:33.9]} 14. Qd4 {[%clk 0:01:59.7]} 14... cxb2+ {[%clk 0:02:31.8]} 15. Ke2
{[%clk 0:01:59.3]} 15... Qb5+ {[%clk 0:02:30.9]} 16. Kf3 {[%clk 0:01:57.7]}
16... Qf5+ {[%clk 0:02:26.1]} 17. Ke2 {[%clk 0:01:54.3]} 17... bxa1=Q {[%clk
0:02:14.2]} 18. Qxa1 {[%clk 0:01:52]} 18... Nf6 {[%clk 0:02:12.7]} 19. Qd4
{[%clk 0:01:49.6]} 19... Be7 {[%clk 0:02:08.5]} 20. Rd1 {[%clk 0:01:48]} 20...
O-O {[%clk 0:02:06.9]} 21. f3 {[%clk 0:01:44.1]} 21... Qc2+ {[%clk 0:02:06.4]}
22. Qd2 {[%clk 0:01:41.6]} 22... Qxd2+ {[%clk 0:02:06]} 23. Rxd2 {[%clk
0:01:42.5]} 23... Rad8 {[%clk 0:02:06.1]} 0-1

[Event "Betsys MČR v online bleskovém šachu 2021"]
[Site "Chess.com"]
[Date "2021.04.17"]
[Round "8"]
[White "MilosJi"]
[Black "Lipican"]
[Result "1-0"]
[WhiteElo "2576"]
[BlackElo "2115"]
[TimeControl "180+1"]
[EndTime "10:17:27 PDT"]
[Termination "Uživatel MilosJi zvítězil po vzdání soupeře"]

1. Nf3 {[%clk 0:03:00.9]} 1... d5 {[%clk 0:02:59.3]} 2. c4 {[%clk 0:03:00.8]}
2... c6 {[%clk 0:02:58.8]} 3. e3 {[%clk 0:03:00.5]} 3... Nf6 {[%clk 0:02:56.8]}
4. Nc3 {[%clk 0:03:00.5]} 4... e6 {[%clk 0:02:54.2]} 5. b3 {[%clk 0:02:58.8]}
5... Bd6 {[%clk 0:02:53.1]} 6. Bb2 {[%clk 0:02:59]} 6... Nbd7 {[%clk 0:02:52.8]}
7. Qc2 {[%clk 0:02:59.3]} 7... Qe7 {[%clk 0:02:51.6]} 8. Rg1 {[%clk 0:02:57.1]}
8... b6 {[%clk 0:02:48.9]} 9. g4 {[%clk 0:02:57.1]} 9... h6 {[%clk 0:02:48.2]}
10. h4 {[%clk 0:02:56.9]} 10... Bb7 {[%clk 0:02:47]} 11. g5 {[%clk 0:02:56.8]}
11... hxg5 {[%clk 0:02:46]} 12. hxg5 {[%clk 0:02:57]} 12... Nh5 {[%clk
0:02:44.3]} 13. O-O-O {[%clk 0:02:56.6]} 13... dxc4 {[%clk 0:02:32.4]} 14. Bxc4
{[%clk 0:02:54.1]} 14... O-O-O {[%clk 0:02:30.5]} 15. Be2 {[%clk 0:02:49.1]}
15... Kb8 {[%clk 0:02:27.6]} 16. Kb1 {[%clk 0:02:39.3]} 16... Ka8 {[%clk
0:02:11.7]} 17. Nd4 {[%clk 0:02:13.9]} 17... g6 {[%clk 0:02:02.9]} 18. Ne4
{[%clk 0:02:07.8]} 18... Be5 {[%clk 0:02:00.6]} 19. Nxc6 {[%clk 0:01:47.2]} 1-0

[Event "Betsys MČR v online bleskovém šachu 2021"]
[Site "Chess.com"]
[Date "2021.04.17"]
[Round "8"]
[White "Kijonker"]
[Black "ritchi12"]
[Result "1-0"]
[WhiteElo "1474"]
[BlackElo "1131"]
[TimeControl "180+1"]
[EndTime "10:17:31 PDT"]
[Termination "Uživatel Kijonker zvítězil matem"]

1. e4 {[%clk 0:02:28.5]} 1... e5 {[%clk 0:02:59.5]} 2. Nf3 {[%clk 0:02:27.9]}
2... Nc6 {[%clk 0:02:59.7]} 3. Bc4 {[%clk 0:02:27.6]} 3... Bc5 {[%clk
0:02:53.7]} 4. c3 {[%clk 0:02:27.3]} 4... d6 {[%clk 0:02:52.4]} 5. d4 {[%clk
0:02:26.5]} 5... exd4 {[%clk 0:02:51.5]} 6. cxd4 {[%clk 0:02:26.3]} 6... Bb4+
{[%clk 0:02:49.7]} 7. Nc3 {[%clk 0:02:26.3]} 7... Bxc3+ {[%clk 0:02:49.6]} 8.
bxc3 {[%clk 0:02:25.1]} 8... Nf6 {[%clk 0:02:49.7]} 9. Bg5 {[%clk 0:02:24.6]}
9... O-O {[%clk 0:02:48.6]} 10. O-O {[%clk 0:02:22.1]} 10... Na5 {[%clk
0:02:43.8]} 11. Bd3 {[%clk 0:02:15.5]} 11... d5 {[%clk 0:02:42.1]} 12. e5 {[%clk
0:02:14.5]} 12... Nc4 {[%clk 0:02:35]} 13. exf6 {[%clk 0:02:12.5]} 13... gxf6
{[%clk 0:02:35.3]} 14. Bh6 {[%clk 0:02:11.5]} 14... Re8 {[%clk 0:02:34.4]} 15.
Bxc4 {[%clk 0:01:45.1]} 15... dxc4 {[%clk 0:02:33.8]} 16. Qa4 {[%clk 0:01:44.4]}
16... Bd7 {[%clk 0:02:33.3]} 17. Qxc4 {[%clk 0:01:43.6]} 17... Be6 {[%clk
0:02:32.5]} 18. Qd3 {[%clk 0:01:40.4]} 18... f5 {[%clk 0:02:32.3]} 19. Rfd1
{[%clk 0:01:31.2]} 19... Qd5 {[%clk 0:02:30.1]} 20. Qd2 {[%clk 0:01:24.6]} 20...
f6 {[%clk 0:02:20.3]} 21. Qf4 {[%clk 0:01:23.1]} 21... Rac8 {[%clk 0:02:15.7]}
22. Qg3+ {[%clk 0:01:21.6]} 22... Kf7 {[%clk 0:02:13.9]} 23. Qg7# {[%clk
0:01:21.1]} 1-0

[Event "Betsys MČR v online bleskovém šachu 2021"]
[Site "Chess.com"]
[Date "2021.04.17"]
[Round "8"]
[White "Adam20032007"]
[Black "pkozubik"]
[Result "1-0"]
[WhiteElo "1718"]
[BlackElo "1167"]
[TimeControl "180+1"]
[EndTime "10:17:53 PDT"]
[Termination "Uživatel Adam20032007 zvítězil po vzdání soupeře"]

1. d4 {[%clk 0:02:58.6]} 1... Nf6 {[%clk 0:02:59.4]} 2. Nf3 {[%clk 0:02:58.8]}
2... g6 {[%clk 0:02:58.3]} 3. e3 {[%clk 0:02:58.1]} 3... d5 {[%clk 0:02:56.3]}
4. Bd3 {[%clk 0:02:58.3]} 4... Bg7 {[%clk 0:02:55.5]} 5. O-O {[%clk 0:02:57.9]}
5... Be6 {[%clk 0:02:53.1]} 6. Nbd2 {[%clk 0:02:57.4]} 6... Nbd7 {[%clk
0:02:52.6]} 7. c3 {[%clk 0:02:55.7]} 7... O-O {[%clk 0:02:52.4]} 8. e4 {[%clk
0:02:55.6]} 8... c5 {[%clk 0:02:51]} 9. e5 {[%clk 0:02:49]} 9... Ne8 {[%clk
0:02:39.7]} 10. Ng5 {[%clk 0:02:47.8]} 10... c4 {[%clk 0:02:31.6]} 11. Bc2
{[%clk 0:02:46.5]} 11... h6 {[%clk 0:02:24.8]} 12. Nxe6 {[%clk 0:02:45.6]} 12...
fxe6 {[%clk 0:02:24.3]} 13. Qg4 {[%clk 0:02:44.3]} 13... g5 {[%clk 0:02:13.4]}
14. f4 {[%clk 0:02:38.2]} 14... Kh8 {[%clk 0:02:10.1]} 15. fxg5 {[%clk
0:02:36.1]} 15... Rxf1+ {[%clk 0:02:06.5]} 16. Kxf1 {[%clk 0:02:36.2]} 16... Nc7
{[%clk 0:02:02.5]} 17. gxh6 {[%clk 0:02:32.5]} 17... Qf8+ {[%clk 0:02:02.3]} 18.
Kg1 {[%clk 0:02:32]} 18... Bxh6 {[%clk 0:02:00.4]} 19. Nf3 {[%clk 0:02:31]}
19... Bxc1 {[%clk 0:01:55.9]} 20. Rxc1 {[%clk 0:02:31.9]} 20... Qh6 {[%clk
0:01:54.9]} 21. Ng5 {[%clk 0:02:21.1]} 21... Rf8 {[%clk 0:01:40.3]} 22. Rf1
{[%clk 0:02:06.3]} 22... Rxf1+ {[%clk 0:01:31.1]} 23. Kxf1 {[%clk 0:02:05.4]}
23... Qf8+ {[%clk 0:01:31.7]} 24. Kg1 {[%clk 0:02:01.6]} 24... Ne8 {[%clk
0:01:31.8]} 25. Qh5+ {[%clk 0:01:59.3]} 1-0

[Event "Betsys MČR v online bleskovém šachu 2021"]
[Site "Chess.com"]
[Date "2021.04.17"]
[Round "8"]
[White "jarosymon"]
[Black "VOJTASEK2009"]
[Result "1-0"]
[WhiteElo "1754"]
[BlackElo "1278"]
[TimeControl "180+1"]
[EndTime "10:17:58 PDT"]
[Termination "Uživatel jarosymon zvítězil matem"]

1. e4 {[%clk 0:03:00.9]} 1... e5 {[%clk 0:02:58.3]} 2. Nf3 {[%clk 0:02:59.9]}
2... Nc6 {[%clk 0:02:57]} 3. d4 {[%clk 0:02:58.8]} 3... exd4 {[%clk 0:02:55.5]}
4. Nxd4 {[%clk 0:02:58]} 4... d6 {[%clk 0:02:55.5]} 5. c4 {[%clk 0:02:57.3]}
5... Nf6 {[%clk 0:02:51.7]} 6. Nc3 {[%clk 0:02:55.8]} 6... Be7 {[%clk
0:02:49.6]} 7. Be2 {[%clk 0:02:54.6]} 7... O-O {[%clk 0:02:46.7]} 8. Be3 {[%clk
0:02:53]} 8... a6 {[%clk 0:02:36.8]} 9. g4 {[%clk 0:02:51.7]} 9... h6 {[%clk
0:02:30]} 10. h4 {[%clk 0:02:50.1]} 10... Nh7 {[%clk 0:02:23.1]} 11. Nf5 {[%clk
0:02:42.1]} 11... Bxf5 {[%clk 0:02:19.6]} 12. exf5 {[%clk 0:02:39.9]} 12... Bxh4
{[%clk 0:02:17.8]} 13. Qd2 {[%clk 0:02:35.5]} 13... Bg5 {[%clk 0:02:12.7]} 14.
f4 {[%clk 0:02:31.1]} 14... Be7 {[%clk 0:02:07.8]} 15. O-O-O {[%clk 0:02:29.5]}
15... b5 {[%clk 0:02:03.3]} 16. cxb5 {[%clk 0:02:19.3]} 16... axb5 {[%clk
0:02:01.4]} 17. Bxb5 {[%clk 0:02:18.4]} 17... Nb4 {[%clk 0:01:56.4]} 18. a3
{[%clk 0:02:15.5]} 18... Na6 {[%clk 0:01:53.2]} 19. g5 {[%clk 0:02:11.3]} 19...
hxg5 {[%clk 0:01:49]} 20. Rxh7 {[%clk 0:02:06.2]} 20... Kxh7 {[%clk 0:01:43.3]}
21. Rh1+ {[%clk 0:02:04.2]} 21... Kg8 {[%clk 0:01:41]} 22. Qh2 {[%clk
0:02:00.8]} 22... f6 {[%clk 0:01:34]} 23. Bc4+ {[%clk 0:01:55.5]} 23... d5
{[%clk 0:01:28.2]} 24. Bxd5+ {[%clk 0:01:53.7]} 24... Rf7 {[%clk 0:01:23.5]} 25.
Qh8# {[%clk 0:01:52.1]} 1-0

[Event "Betsys MČR v online bleskovém šachu 2021"]
[Site "Chess.com"]
[Date "2021.04.17"]
[Round "8"]
[White "EXTREME_STRATEGY007"]
[Black "CZpeeeter"]
[Result "1-0"]
[WhiteElo "1292"]
[BlackElo "1698"]
[TimeControl "180+1"]
[EndTime "10:18:02 PDT"]
[Termination "Uživatel EXTREME_STRATEGY007 zvítězil matem"]

1. e4 {[%clk 0:03:00.9]} 1... e5 {[%clk 0:02:53.1]} 2. Nf3 {[%clk 0:02:58.4]}
2... Nc6 {[%clk 0:02:50.3]} 3. Bc4 {[%clk 0:02:57.5]} 3... Bc5 {[%clk
0:02:46.2]} 4. c3 {[%clk 0:02:54.5]} 4... Nf6 {[%clk 0:02:45.5]} 5. d3 {[%clk
0:02:53.6]} 5... O-O {[%clk 0:02:43.8]} 6. O-O {[%clk 0:02:52.4]} 6... d5 {[%clk
0:02:23.3]} 7. exd5 {[%clk 0:02:45]} 7... Nxd5 {[%clk 0:02:22.4]} 8. h3 {[%clk
0:02:43.9]} 8... Be6 {[%clk 0:02:20.9]} 9. Re1 {[%clk 0:02:36.9]} 9... Qd6
{[%clk 0:02:16.1]} 10. d4 {[%clk 0:02:36.1]} 10... exd4 {[%clk 0:02:13.4]} 11.
cxd4 {[%clk 0:02:35.7]} 11... Bb4 {[%clk 0:02:06.2]} 12. Bd2 {[%clk 0:02:23.2]}
12... Bxd2 {[%clk 0:02:03.5]} 13. Qxd2 {[%clk 0:02:21.6]} 13... Rae8 {[%clk
0:01:55.1]} 14. Nc3 {[%clk 0:02:11]} 14... Nxc3 {[%clk 0:01:54.4]} 15. Qxc3
{[%clk 0:02:08.1]} 15... Bxc4 {[%clk 0:01:50.1]} 16. Qxc4 {[%clk 0:02:03.6]}
16... Rd8 {[%clk 0:01:44.1]} 17. Rad1 {[%clk 0:02:01.2]} 17... Rfe8 {[%clk
0:01:42]} 18. Ng5 {[%clk 0:01:38.9]} 18... Rxe1+ {[%clk 0:01:28.8]} 19. Rxe1
{[%clk 0:01:36.9]} 19... Qd5 {[%clk 0:01:29]} 20. Qxd5 {[%clk 0:01:34.4]} 20...
Rxd5 {[%clk 0:01:27.2]} 21. Re8# {[%clk 0:01:33.6]} 1-0

[Event "Betsys MČR v online bleskovém šachu 2021"]
[Site "Chess.com"]
[Date "2021.04.17"]
[Round "8"]
[White "Maty122"]
[Black "zaciname"]
[Result "0-1"]
[WhiteElo "812"]
[BlackElo "733"]
[TimeControl "180+1"]
[EndTime "10:18:02 PDT"]
[Termination "Uživatel zaciname zvítězil matem"]

1. e4 {[%clk 0:02:38.4]} 1... e5 {[%clk 0:02:59.1]} 2. Nf3 {[%clk 0:02:38.8]}
2... Nf6 {[%clk 0:02:59.6]} 3. Nxe5 {[%clk 0:02:37.1]} 3... Qe7 {[%clk
0:02:59.3]} 4. d4 {[%clk 0:02:23.2]} 4... d6 {[%clk 0:02:58.5]} 5. Nf3 {[%clk
0:02:14.4]} 5... Nxe4 {[%clk 0:02:58.2]} 6. Be2 {[%clk 0:02:14.3]} 6... Nf6
{[%clk 0:02:56.5]} 7. O-O {[%clk 0:02:11.3]} 7... Be6 {[%clk 0:02:49.6]} 8. Bg5
{[%clk 0:02:08.4]} 8... Nbd7 {[%clk 0:02:45.9]} 9. d5 {[%clk 0:02:08.1]} 9... h6
{[%clk 0:02:36.8]} 10. Bxf6 {[%clk 0:02:03.8]} 10... gxf6 {[%clk 0:02:32.5]} 11.
dxe6 {[%clk 0:02:03.6]} 11... fxe6 {[%clk 0:02:29.5]} 12. Bc4 {[%clk 0:02:03.5]}
12... d5 {[%clk 0:02:26]} 13. Bxd5 {[%clk 0:01:59.7]} 13... exd5 {[%clk
0:02:21.3]} 14. Re1 {[%clk 0:01:59.3]} 14... Ne5 {[%clk 0:02:19.5]} 15. Qd4
{[%clk 0:01:45.9]} 15... Nxf3+ {[%clk 0:02:12.8]} 16. gxf3 {[%clk 0:01:44.9]}
16... Qxe1+ {[%clk 0:02:12.2]} 17. Kg2 {[%clk 0:01:44.9]} 17... Qe5 {[%clk
0:01:59.7]} 18. Qa4+ {[%clk 0:01:41.1]} 18... c6 {[%clk 0:01:56.2]} 19. Nc3
{[%clk 0:01:40.3]} 19... Bd6 {[%clk 0:01:49.8]} 20. Qh4 {[%clk 0:01:33.5]} 20...
Rg8+ {[%clk 0:01:46.5]} 21. Kh3 {[%clk 0:01:28.5]} 21... Qxh2# {[%clk
0:01:37.7]} 0-1